Cogmind - Beta 14 @@@ ROGUE MODE // 2024.08.18 @ 10:03:21 Player: graour Result: Destroyed by G-34 Mercenary with Small Laser Performance ------------- Evolutions (0) 0 Regions Visited (4) 800 Robots Destroyed (21) 105 Value Destroyed (489) 489 Prototype IDs (23) 460 Alien Tech Used (0) 0 Bonus (300) 300 TOTAL SCORE: 2154 Bonus ------- Aligned with FarCom 300 Cogmind --------- Core Integrity 0/250 Matter 300/300 Energy 150/150 System Corruption 2% Temperature Warm (107) Movement Walking (120) Location -9/Mines Parts ------- > --- POWER (1) -------- Light Angular Momentum Engine > --- PROPULSION (2) --- Carbon-fiber Leg Improved Carbon-fiber Leg > --- UTILITY (2) ------ Improved Heat Sink Targeting Computer > --- WEAPON (2) ------- Gatling Laser Beam Cannon > --- INVENTORY (5) ---- Wheel Terrain Scanner Transmission Jammer Advanced ECM Suite Field Lobotomy Kit (5) Peak State ------------ > --- POWER ------------ Light Angular Momentum Engine > --- PROPULSION ------- Carbon-fiber Leg Improved Carbon-fiber Leg > --- UTILITY ---------- Improved Heat Sink Targeting Computer > --- WEAPON ----------- Gatling Laser Beam Cannon > --- INVENTORY -------- Wheel Terrain Scanner Transmission Jammer Advanced ECM Suite Field Lobotomy Kit [Rating: 23] Favorites ----------- Power Light Angular Momentum Engine Engine Light Angular Momentum Engine Power Core Light Nuclear Core Propulsion Wheel Leg Carbon-fiber Leg Wheel Wheel Utility Targeting Computer Device Improved Heat Sink Storage Small Storage Unit Processor Targeting Computer Weapon Beam Cannon Energy Gun Medium Laser Energy Cannon Beam Cannon Build | -11 -10 -10 -10 -9 ------- Run | Yrd Mat Min Exi Min Slots Evolved . | . . . . . Power . | . . . . . Propulsion . | . . . . . Utility . | . . . . . Weapon . | . . . . . Parts Attached 23 | 6 4 10 1 2 Power 4 | 1 . 3 . . Engine 3 | 1 . 2 . . Core 1 | . . 1 . . Reactor . | . . . . . Propulsion 7 | 2 1 3 . 1 Treads . | . . . . . Leg 3 | . . 2 . 1 Wheel 4 | 2 1 1 . . Hover . | . . . . . Flight . | . . . . . Utility 4 | 1 1 2 . . Device 2 | . . 2 . . Storage 1 | 1 . . . . Processor 1 | . 1 . . . Hackware . | . . . . . Protection . | . . . . . Artifact . | . . . . . Weapon 8 | 2 2 2 1 1 Energy Gun 7 | 2 1 2 1 1 Energy Cannon 1 | . 1 . . . Ballistic Gun . | . . . . . Ballistic Cannon . | . . . . . Launcher . | . . . . . Special Weapon . | . . . . . Impact Weapon . | . . . . . Slashing Weapon . | . . . . . Piercing Weapon . | . . . . . Special Melee Weapon . | . . . . . Unidentified Prototypes . | . . . . . Parts Lost 6 | . 1 5 . . Power 1 | . . 1 . . Propulsion 3 | . 1 2 . . Utility . | . . . . . Weapon 2 | . . 2 . . Highest Loss Streak 5 | . 1 5 . . To Critical Strikes . | . . . . . Average Slot Usage (%) 99 | . 98 98 100 100 Engine 10 | . 14 6 14 14 Core 3 | . . 7 . . Leg 12 | . . 6 28 28 Wheel 15 | . 27 20 . . Device 9 | . . 11 14 14 Storage 4 | . 14 2 . . Processor 13 | . 13 14 14 14 Energy Gun 16 | . 23 13 14 14 Energy Cannon 11 | . 4 14 14 14 Peak Build Rating 23 | 6 8 16 17 23 Average Rating 12 | 4 7 11 16 22 On Entrance 9 | . 6 8 16 17 Naked Turns . | . . . . . Heaviest Build 17 | 13 15 16 16 17 Greatest Support 33 | 26 26 26 25 33 Greatest Overweight (x) . | . . . . . Average Overweight (x) . | . . . . . Largest Inventory Capacity 8 | 8 8 8 5 5 Average Capacity 5 | 6 8 5 5 5 Most Carried 8 | 7 8 8 5 5 Average Carried 5 | 3 7 5 4 5 Final Capacity 8 | 8 8 5 5 5 Final Carried 8 | 7 8 5 5 5 Class Distribution -------------------- 50% | Mutant 49% | Scavenger-Mutant Dominant Class ---------------- Mutant | -10/Materials Scavenger-Mutant | -10/Mines Scavenger-Mutant | -10/Exiles Mutant | -9/Mines Resources | -11 -10 -10 -10 -9 ----------- Run | Yrd Mat Min Exi Min Matter Collected 413 | 260 40 83 . 30 Remotely . | . . . . . Salvage Created 622 | 58 185 326 . 53 Parts 37 | 2 9 26 . . Haulers Intercepted 1 | . 1 . . . Recyclers Shooed 1 | . 1 . . . Parts Field Recycled . | . . . . . Retrieved Matter . | . . . . . Parts Self-Destructed . | . . . . . Prevented . | . . . . . Kills | -11 -10 -10 -10 -9 ------- Run | Yrd Mat Min Exi Min Combat Hostiles Destroyed 15 | . 4 9 . 2 Guns 9 | . 4 3 . 2 Cannons 5 | . . 5 . . Classes Destroyed 8 | 1 4 3 . . Worker 1 | . 1 . . . Builder 1 | . . 1 . . Tunneler 2 | . . 2 . . Hauler 1 | . 1 . . . Recycler 1 | 1 . . . . Swarmer 5 | . 2 3 . . Grunt 9 | . 2 5 . 2 Demolisher 1 | . . 1 . . Best Kill Streak 5 | 1 3 5 . 1 Combat Bots Only 4 | . 2 4 . 1 Max Kills in Single Turn 2 | 1 1 2 . 1 Gunslinging . | . . . . . Exploded . | . . . . . Melee . | . . . . . Uniques/NPCs Destroyed . | . . . . . Combat | -11 -10 -10 -10 -9 -------- Run | Yrd Mat Min Exi Min Hostile Shots Fired 94 | . 23 60 . 11 Missed 26 | . 8 14 . 4 Damage Taken 845 | . 162 598 . 85 Core 256 | . 30 185 . 41 Absorbed by Shields . | . . . . . Core Remaining (%) 100 | 100 . . . . Volleys Fired 67 | 2 21 32 . 12 Largest 2 | 2 2 2 . 1 Hottest 125 | 90 110 125 . 80 Shots Fired 119 | 4 42 61 . 12 Gun 86 | 4 40 30 . 12 Cannon 33 | . 2 31 . . Launcher . | . . . . . Special . | . . . . . Kinetic . | . . . . . Thermal 119 | 4 42 61 . 12 Explosive . | . . . . . Electromagnetic . | . . . . . Robot Hit Streak 12 | 2 7 9 . 12 Robot Miss Streak 3 | 1 3 3 . 1 Penetration Max . | . . . . . Secondary Targets 1 | . 1 . . . Max Gunslinging Chain 1 | . 1 . . . Shots Hit Robots 85 | 3 27 43 . 12 Core Hits 38 | 2 10 21 . 5 Critical Kills . | . . . . . Critical Parts Destroyed . | . . . . . Critical Strikes 2 | . 1 1 . . Burn 2 | . 1 1 . . Melee Attacks . | . . . . . Impact . | . . . . . Slashing . | . . . . . Piercing . | . . . . . Sneak Attacks . | . . . . . Combat Hostiles . | . . . . . Follow-up Attacks . | . . . . . Damage Inflicted 1443 | 36 351 727 . 329 Guns 921 | 36 316 240 . 329 Cannons 507 | . 35 472 . . Explosions . | . . . . . Melee . | . . . . . Ramming 15 | . . 15 . . Kinetic . | . . . . . Thermal 1428 | 36 351 712 . 329 Explosive . | . . . . . Electromagnetic . | . . . . . Impact . | . . . . . Slashing . | . . . . . Piercing . | . . . . . Highest Corruption 2 | . . 2 2 2 Average Corruption 2 | . . 2 2 2 Corruption Purged . | . . . . . Corruption Blocked . | . . . . . Effects 9 | . . 3 3 3 Message Errors 4 | . . 1 2 1 Matter Fused 1 | . . 1 . . Energy Discharges 2 | . . 1 . 1 Data Loss (minor) 1 | . . . . 1 Data Loss (major) 1 | . . . 1 . Overload Shots . | . . . . . Overflow Damage . | . . . . . Projectiles . | . . . . . Explosions . | . . . . . Melee . | . . . . . Knockbacks . | . . . . . Impact . | . . . . . Kinetic . | . . . . . Secondary . | . . . . . Self-Inflicted Damage 6 | . . 6 . . Shots . | . . . . . Rammed 3 | . . 3 . . Targets Rammed 3 | . . 3 . . Kicked . | . . . . . Crushed . | . . . . . Highest Temperature 318 | 60 273 318 . 101 Average Temperature 77 | 33 80 84 . 47 Received Heat Transfer 339 | . 63 231 . 45 Effects 2 | . 2 . . . Interference 2 | . 2 . . . Siege Activations . | . . . . . Robots Corrupted . | . . . . . Combat Hostiles . | . . . . . Parts Fried . | . . . . . Impact Corruptions . | . . . . . Robots Melted . | . . . . . Combat Hostiles . | . . . . . Parts Melted 7 | 1 1 4 . 1 Heat Transferred 3521 | 99 967 1705 . 750 Parts Sabotaged . | . . . . . Parts Stolen . | . . . . . Parts Stripped . | . . . . . Power Chain Reactions . | . . . . . Alert | -11 -10 -10 -10 -9 ------- Run | Yrd Mat Min Exi Min Peak Influence 215 | 5 180 215 . 60 Initial 70 | . 3 70 . . Average 104 | . 106 143 . 15 Maximum Alert Level 1 | . . 1 . . Low Security (%) 77 | 100 100 54 . 100 Level 1 22 | . . 45 . . Level 2 . | . . . . . Level 3 . | . . . . . Level 4 . | . . . . . Level 5 . | . . . . . High Security . | . . . . . Max Security . | . . . . . Squads Dispatched 2 | . 1 . . 1 Investigation 1 | . . . . 1 Extermination . | . . . . . Reinforcement 1 | . 1 . . . Assault . | . . . . . Garrison . | . . . . . Intercept . | . . . . . Searches Triggered . | . . . . . Construction Impeded . | . . . . . Haulers Reinforced . | . . . . . Active Scanning Responses . | . . . . . Cargo Convoy Interrupts . | . . . . . Stealth | -11 -10 -10 -10 -9 --------- Run | Yrd Mat Min Exi Min Distress Signals 1 | . 1 . . . Communications Jammed . | . . . . . Distress Signals . | . . . . . Times Spotted 27 | . 12 12 . 3 Peak Tracking Total 5 | . 4 5 . 1 Tactical Retreats 3 | . 1 2 . . Traps | -11 -10 -10 -10 -9 ------- Run | Yrd Mat Min Exi Min Traps Triggered . | . . . . . Indirectly . | . . . . . Trap Hack Attempts . | . . . . . Triggered . | . . . . . Disarmed . | . . . . . Reprogrammed . | . . . . . Reused . | . . . . . Traps Extracted . | . . . . . Installed . | . . . . . Triggered . | . . . . . Machines | -11 -10 -10 -10 -9 ---------- Run | Yrd Mat Min Exi Min Machines Disabled . | . . . . . Max in Single Turn . | . . . . . Machines Repaired . | . . . . . Machines Dismantled . | . . . . . Machines Sabotaged . | . . . . . Overloaded Fab Kills . | . . . . . Hacking | -11 -10 -10 -10 -9 --------- Run | Yrd Mat Min Exi Min Machines Accessed 4 | . 2 . 1 1 Terminals 2 | . 2 . . . Fabricators . | . . . . . Repair Stations . | . . . . . Recycling Units . | . . . . . Scanalyzers . | . . . . . Garrison Access . | . . . . . Total Hacks 7 | . 5 . 1 1 Successful 5 | . 3 . 1 1 Failed 2 | . 2 . . . Catastrophic 1 | . 1 . . . Database Lockouts . | . . . . . Manual 4 | . 3 . 1 . Terminals 5 | . 5 . . . Fabricators . | . . . . . Repair Stations . | . . . . . Recycling Units . | . . . . . Scanalyzers . | . . . . . Garrison Access . | . . . . . Terminal Hacks 3 | . 1 . 1 1 Robot Analysis 1 | . 1 . . . Open Door 1 | . . . . 1 Derelict Proto ID Bank 1 | . . . 1 . Fabricator Hacks . | . . . . . Repair Station Hacks . | . . . . . Recycling Unit Hacks . | . . . . . Scanalyzer . | . . . . . Garrison Access Hacks . | . . . . . Unauthorized Hacks 2 | . 2 . . . Terminals 2 | . 2 . . . Track 1 | . 1 . . . Operators 1 | . 1 . . . Fabricators . | . . . . . Repair Stations . | . . . . . Recycling Units . | . . . . . Scanalyzers . | . . . . . Garrison Access . | . . . . . Data Cores Recovered . | . . . . . Used . | . . . . . Hacking Detections 2 | . 2 . . . Full Trace Events . | . . . . . Feedback Events . | . . . . . Feedback Blocked . | . . . . . Robot Schematics Acquired . | . . . . . Robots Built . | . . . . . Authchips . | . . . . . Time . | . . . . . Total Robot Build Rating . | . . . . . Part Schematics Acquired . | . . . . . Parts Built . | . . . . . Authchips . | . . . . . Time . | . . . . . Total Part Build Rating . | . . . . . Parts Repaired . | . . . . . Time . | . . . . . Parts Recycled . | . . . . . Recycled Matter . | . . . . . Retrieved Matter . | . . . . . Retrieved Components . | . . . . . Parts Scanalyzed . | . . . . . Part Schematics Acquired . | . . . . . Parts Damaged . | . . . . . Bothacking | -11 -10 -10 -10 -9 ------------ Run | Yrd Mat Min Exi Min Used RIF Installer . | . . . . . Robots Hacked . | . . . . . Non-combat . | . . . . . Combat . | . . . . . Robot Hacks Applied . | . . . . . Relay Couplers Released . | . . . . . Fabnet Peak Effective % . | . . . . . Robots Rewired . | . . . . . Allies Hacked . | . . . . . Hacks Repelled . | . . . . . Allies | -11 -10 -10 -10 -9 -------- Run | Yrd Mat Min Exi Min Total Allies . | . . . . . Largest Group . | . . . . . Highest-Rated Group . | . . . . . Highest-Rated Ally . | . . . . . Total Orders . | . . . . . Ally Attacks . | . . . . . Total Damage . | . . . . . Kills . | . . . . . Allies Corrupted . | . . . . . Allies Melted . | . . . . . Intel | -11 -10 -10 -10 -9 ------- Run | Yrd Mat Min Exi Min Robot Analysis Total 1 | . 1 . . . Derelict Logs Recovered . | . . . . . Drone Launches . | . . . . . Drone Recoveries . | . . . . . Exploration | -11 -10 -10 -10 -9 ------------- Run | Yrd Mat Min Exi Min Turns Passed 1543 | 73 371 620 288 191 Spaces Moved 1011 | 57 320 282 238 114 Core 1 | 1 . . . . Treads . | . . . . . Legs 453 | . . 101 238 114 Wheels 557 | 56 320 181 . . Hover . | . . . . . Flight . | . . . . . Fastest Speed 50 | 50 90 80 120 120 Average Speed 102 | 90 90 97 120 120 Slowest Speed 120 | 100 100 120 120 120 Overloaded Moves . | . . . . . Propulsion Burnouts . | . . . . . Robots Hopped . | . . . . . Cave-ins Triggered . | . . . . . Exploration Rate (%) 36 | 3 51 49 62 15 Regions Visited 4 Branch Regions 3 Pre-discovered Areas . | . . . . . Known Exits Taken . | . . . . . Unknown Exits Taken 4 | 1 1 1 1 . Scrap Searched 1 | . . 1 . . Spaces Dug . | . . . . . Terrain Destroyed . | . . . . . Melee . | . . . . . Projectile . | . . . . . AOE . | . . . . . Terrain Rammed . | . . . . . Walls Destroyed . | . . . . . Machines Disabled . | . . . . . Actions | -11 -10 -10 -10 -9 --------- Run | Yrd Mat Min Exi Min Total 1394 | 71 359 567 241 156 Wait 263 | . 9 232 . 22 Move 1007 | 56 319 281 237 114 Hop . | . . . . . Pick Up 15 | 7 2 3 1 2 Fast Attach 15 | 6 4 4 1 . Attach 1 | . . 1 . . Detach . | . . . . . Swap 7 | . . 5 . 2 Drop 15 | . 3 6 2 4 Fire 67 | 2 21 32 . 12 Melee . | . . . . . Ram 3 | . . 3 . . Kick . | . . . . . Crush . | . . . . . Escape Stasis . | . . . . . Rewire 1 | . 1 . . . Trap . | . . . . . Miscellaneous . | . . . . . Route ------- -11/Scrapyard -10/Materials (discovered 2 exits: [*Mat] / [*Min]) -10/Mines (discovered 2 exits: [*Mat] / *Exi) -10/Exiles -9/Mines History --------- Turn | Location | Event 5 | -11/Scrapyard | Discovered new exit (range 15) 74 | -11/Scrapyard | Entered Materials 300 | -10/Materials | Build established: Mutant 351 | -10/Materials | Discovered new exit (range 15) 436 | -10/Materials | Discovered new exit (range 8) 445 | -10/Materials | Entered Mines 447 | -10/Mines | Met a Derelict bent on vengeance 480 | -10/Mines | Discovered new exit (range 3) 872 | -10/Mines | Build established: Scavenger-Mutant 876 | -10/Mines | Assembled infested the area 900 | -10/Mines | Core integrity fell below 50% 933 | -10/Mines | Core integrity fell below 20% 941 | -10/Mines | Met 8R-AWN 967 | -10/Mines | Lost 5 parts (1p2n2w) 1024 | -10/Mines | A weapon hastily lodged in a ceiling crevice suddenly fell to the ground 1060 | -10/Mines | Discovered new exit (range 5) 1065 | -10/Mines | Entered Exiles 1095 | -10/Exiles | Welcomed by 8R-AWN 1115 | -10/Exiles | Met EX-HEX 1153 | -10/Exiles | Met EX-BIN 1173 | -10/Exiles | Aligned with FarCom system 1174 | -10/Exiles | Given EX-Vault access code 1203 | -10/Exiles | Opened EX-Vault 1218 | -10/Exiles | Found Field Lobotomy Kit 1247 | -10/Exiles | Warned to stay clear of 0b10 Research branches 1279 | -10/Exiles | Met EX-DEC 1344 | -10/Exiles | Discovered new exit (range 10) 1353 | -10/Exiles | Left Exiles lab with Field Lobotomy Kit 1353 | -10/Exiles | Entered Mines 1359 | -9/Mines | Met a Derelict shopkeep closing up shop 1544 | -9/Mines | Destroyed by G-34 Mercenary with Small Laser Last Messages --------------- 01363_ E1-IL5(g): "You've got to be kidding me! I'm outta here..." 01369_ Dropped Aluminum Leg. 01371_ System corrupted: Component data lost. 01380_ Dropped Particle Gun. 01394_ Dropped Imp. Heat Sink. 01394_ Acquired Adv. ECM Suite. 01399_ Dropped Com. Wheel. 01399_ Acquired Transmission Jammer. 01431_ F:K&HZJH/QVB=5RP||PX|W:>3SG4H= WJJGD 01452_ G-34 Mercenary heat short circuits Sml. Laser. 01452_ G-34 Mercenary overheating. 01452_ Broken Sml. Laser melted. 01452_ G-34 Mercenary destroyed. 01457_ R-06 Scavenger collects Imp. Heat Sink. 01458_ Acquired 22 matter. 01486_ Acquired 8 matter. 01531_ System corrupted: Energy discharge (-60). 01538_ G-47 Trooper destroyed. Map ----- +----------------------------------------------------+ | ?????????????????????????????????????????????????? | | ?????????????????????????????????????????????????? | | ?????????????????????????????????????????????????? | | ?????????????????????????????????????????????????? | | ?????????????????????????????????????????????????? | | ?????????????????????????????????????????????????? | | ?????????????????????????????????????????????????? | | ?????????????????????????????????????????????????? | | ?????????????????????????????????????????????????? | | ?????????????????????????????????????????????????? | | ?????????????????????????????????????????????????? | | ?????????????????????????????????????????????????? | | ?????????????????????????????????????????????????? | | ?????????????????????????????????????????????????? | | ?????????????????????????????????????????????????? | | ???????????????????????????????????sss???????????? | | ?????????????????????????????????????????????????? | | ?????????????????????????????????#???????????????? | | ???????????????????????????????? ###?????????????? | | ???????????????????????????????# ##????????????? | | ?????????????????????????????## #????????????? | | ???????????????????????????## #????????????? | | ???????????????????????????# #????????????? | | ???????????????????????????# #????????????? | | ??????????????############## #????????????? | | ??????????????# @## ##???????????? | | ??????????????# % g ##??????????? | | ??????????????# ####### #??????????? | | ??????????????# #?????# #??????????? | | ??####?######## #?????## ##??????????? | | ??#"=### #?????## ##???????????? | | ??#"= !# #????## ##????????????? | | ??#"] #????# ## #?????????????? | | ??#"[ #???# ##?# ##?????????????? | | ??#"[= #X #??# ##???###??????????????? | | ??#" ### #??## ####?????????????????????? | | ??####?## #???###?????????????????????????? | | ????????##########???????????????????????????????? | | ?????????????????????????????????????????????????? | | ?????????????????????????????????????????????????? | | ?????????????????????????????????????????????????? | | ?????????????????????????????????????????????????? | | ?????????????????????????????????????????????????? | | ?????????????????????????????????????????????????? | | ?????????????????????????????????????????????????? | | ?????????????????????????????????????????????????? | | ?????????????????????????????????????????????????? | | ?????????????????????????????????????????????????? | | ?????????????????????????????????????????????????? | | ?????????????????????????????????????????????????? | +----------------------------------------------------+ Best States ------------- Heat Dissipation 39 Energy Generation 18 Energy Capacity 250 Matter Stores 300 Matter Capacity 300 Sight Range 16 Terrain Scan Density 10 Evasion (%) 55 Targeting Accuracy 5 Item Schematics ----------------- None Robot Schematics ------------------ None Fabricated ------------ Nothing Alien Tech Used ----------------- None Achievements -------------- None Challenges ------------ None Game ------ Seed ExoskeletonSwarmMallet Manual? 0 Play Time 00:16:31 Cumulative 51.0 hours Start 2024.08.18 @ 09:48:14 End 2024.08.18 @ 10:03:21 Sessions 1 Manual Loads 0 Difficulty Rogue Special Mode None Game No. 76 Rogue 76 Adventurer 0 Explorer 0 Win Type - Total 0 Types 0/0/0/0/0/0/0/0/0 Lore% 29 Gallery% 47 Achievement% 34 Wizard Run 0 Options --------- Layout 1 ASCII 0 Keyboard 1 Movement Arrows Keybinds 0 Fullscreen 1 Font 24/Smallcaps Map View 50x35 Zoom Use 0% Tactical HUD 1 Map Filters NONE Filters NONE Steam 1 RUN: b9ccda8f-04ed-4203-ae88-564bf571e691